bitfinex-derivatives/quotes_SOLF0:USTF0_20241212
["timestamp","ask_amount","ask_price","bid_price","bid_amount"]
[1734043973583,2.1905,228.18,228.17,6.53428544]
[1734043974782,1.3755,228.25,228.17,6.53428544]
[1734043974979,2.1901,228.22,228.21,6.53428544]
[1734043975579,2.16,228.3,228.21,6.53428544]
[1734043975785,2.19,228.23,228.19,2.16]
[1734043976682,2.19,228.23,228.19,4.3503]
[1734043977273,2.1901,228.22,228.19,2.16]
[1734043977476,2.1901,228.22,228.21,6.53428544]
[1734043978277,2.1897,228.27,228.22,2.19]
[1734043978479,2.1897,228.27,228.26,6.53428544]
[1734043978888,1.4383,228.32,228.26,6.53428544]
[1734043979081,2.1895,228.28,228.26,6.53428544]
[1734043979277,1.4383,228.32,228.26,6.53428544]
[1734043979482,2.1894,228.29,228.28,6.53428544]
[1734043987891,2.16,228.35,228.28,6.53428544]
[1734043988082,2.16,228.35,228.3,6.53428544]
[1734043988787,2.189,228.34,228.3,6.53428544]
[1734043988993,2.16,228.35,228.26,7.31694515]
[1734043989294,2.16,228.35,228.3,6.53428544]
[1734043990791,2.1892,228.31,228.3,6.53428544]
[1734043998808,2.1893,228.3,228.27,5.14949977]
[1734043999004,2.1893,228.3,228.29,6.53428544]
[1734043999401,151.6379188,228.46,228.29,8.67428544]
[1734043999605,0.67654188,228.44,228.39,6.53428544]
[1734043999803,0.67654188,228.43,228.39,6.53428544]
[1734044000002,1.3427,228.45,228.39,6.53428544]
[1734044000003,2.1883,228.4,228.39,6.53428544]
[1734044010514,2.1883,228.4,228.34,4.3289]
[1734044010515,2.1888,228.35,228.31,2.1892]
[1734044010815,2.1888,228.35,228.34,6.53428544]
[1734044014511,6.53428544,228.44,228.31,2.14]
[1734044014810,0.67630407,228.43,228.37,6.53428544]
[1734044015010,6.53428544,228.44,228.37,6.53428544]
[1734044015206,0.67629833,228.43,228.37,6.53428544]
[1734044015615,2.1885,228.38,228.37,6.53428544]
[1734044016217,2.1885,228.38,228.37,4.33728544]
[1734044016614,6.53428544,228.42,228.27,5.14949977]
[1734044016819,6.53428544,228.42,228.34,6.53428544]
[1734044017015,0.67635069,228.41,228.34,6.53428544]
[1734044017219,2.14,228.4,228.34,6.53428544]
[1734044017419,3.6004,228.4,228.34,6.53428544]
[1734044017618,2.1888,228.35,228.34,6.53428544]
[1734044018519,10.13468544,228.4,228.27,5.14949977]
[1734044018821,0.67637277,228.39,228.33,6.53428544]
[1734044019220,1.4353,228.38,228.33,6.53428544]
[1734044019721,2.1889,228.34,228.33,6.53428544]
[1734044026029,2.1893,228.31,228.27,7.28949977]
[1734044026321,7.96958544,228.38,228.27,7.28949977]
[1734044026515,7.96958544,228.38,228.32,6.53428544]
[1734044027625,2.189,228.33,228.32,6.53428544]
[1734044029222,2.189,228.33,228.27,7.28949977]
[1734044029223,2.1893,228.31,228.27,7.28949977]
[1734044029427,2.1893,228.31,228.3,6.53428544]
[1734044029822,1.4353,228.38,228.27,7.28949977]
[1734044029823,2.1894,228.3,228.27,7.28949977]
[1734044030029,7.96958544,228.38,228.27,2.14]
[1734044030225,7.96958544,228.38,228.3,6.53428544]
[1734044030926,2.1892,228.31,228.3,6.53428544]
[1734044031133,2.14,228.35,228.3,6.53428544]
[1734044032327,2.1895,228.28,228.23,4.3299]
[1734044033636,2.1896,228.27,228.23,4.3299]
[1734044033834,2.1896,228.27,228.26,6.53428544]
[1734044036930,2.14,228.35,228.26,6.53428544]
[1734044037134,2.14,228.35,228.29,6.53428544]
[1734044037326,2.14,228.35,228.24,5.19628473]
[1734044037536,2.14,228.35,228.29,6.53428544]
[1734044038734,2.1893,228.3,228.29,6.53428544]
[1734044040133,2.14,228.35,228.22,2.14]
[1734044040439,10.58909877,228.35,228.27,6.53428544]
[1734044040737,2.1896,228.27,228.22,2.14]
[1734044041333,2.1896,228.27,228.2,2.14]
[1734044041537,2.1896,228.27,228.22,2.1901]
[1734044041835,2.1897,228.26,228.2,2.14]
[1734044042729,2.1897,228.26,228.21,2.1901]
[1734044044540,2.1897,228.26,228.25,6.53428544]
[1734044050843,3.5127,228.35,228.25,6.53428544]
[1734044051137,3.5127,228.35,228.22,7.48340704]
[1734044051743,2.1896,228.28,228.22,7.48340704]
[1734044051939,2.1896,228.28,228.27,6.53428544]
[1734044055045,2.1896,228.28,228.22,7.48340704]
[1734044055046,2.1896,228.27,228.25,6.53428544]
[1734044060745,2.1896,228.27,228.21,2.1901]
[1734044060944,2.1898,228.26,228.2,2.1902]
[1734044061138,2.1898,228.26,228.25,6.53428544]
[1734044062548,2.14,228.3,228.2,7.56031759]
[1734044062549,2.1898,228.25,228.2,7.56031759]
[1734044062849,2.1898,228.25,228.23,6.53428544]
[1734044065048,6.53428544,228.28,228.15,2.1907]
[1734044065350,6.53428544,228.26,228.19,6.53428544]
[1734044066050,2.1902,228.2,228.19,6.53428544]
[1734044066245,2.14,228.27,228.19,6.53428544]
[1734044066441,2.14,228.27,228.2,6.53428544]
[1734044066641,2.14,228.27,228.11,2.14]
[1734044066845,2.14,228.27,228.2,6.53428544]
[1734044067545,7.94378544,228.28,228.2,6.53428544]
[1734044067754,2.1902,228.21,228.2,6.53428544]
[1734044073655,8.67428544,228.27,228.15,5.20179342]
[1734044073849,8.67428544,228.27,228.18,6.53428544]
[1734044074654,2.1904,228.19,228.18,6.53428544]
[1734044078148,2.1904,228.19,228.15,5.20179342]
[1734044078350,2.1904,228.19,228.18,6.53428544]
[1734044079648,2.1903,228.2,228.18,6.53428544]
[1734044082161,8.67428544,228.27,228.18,6.53428544]
[1734044082359,8.67428544,228.27,228.2,6.53428544]
[1734044083452,2.14,228.27,228.2,6.53428544]
[1734044083656,8.67428544,228.27,228.2,6.53428544]
[1734044083858,2.14,228.26,228.2,6.53428544]
[1734044085163,2.19,228.23,228.2,6.53428544]
[1734044086155,156.0153188,228.37,228.22,6.53428544]
[1734044086358,15.48950534,228.35,228.24,6.53428544]
[1734044086555,6.3626,228.35,228.24,6.53428544]
[1734044086761,2.14,228.34,228.24,6.53428544]
[1734044087060,6.53428544,228.32,228.24,6.53428544]
[1734044087556,2.1895,228.28,228.24,6.53428544]
[1734044090256,195.1155026,228.44,228.24,6.53428544]
[1734044090453,2.1893,228.31,228.26,6.53428544]
[1734044091760,2.1893,228.3,228.26,6.53428544]
[1734044096064,6.53428544,228.34,228.26,6.53428544]
[1734044096857,2.1894,228.29,228.26,6.53428544]
[1734044098265,2.14,228.38,228.28,6.53428544]
[1734044098464,6.53428544,228.38,228.3,6.53428544]
[1734044098971,2.14,228.38,228.17,1.3374]
[1734044099265,6.53428544,228.33,228.25,6.53428544]
[1734044099459,2.14,228.33,228.2,2.14]
[1734044099662,2.1895,228.28,228.25,6.53428544]
[1734044099870,2.1895,228.28,228.23,2.1899]
[1734044100075,2.1895,228.28,228.26,6.53428544]
[1734044103270,2.1895,228.28,228.24,6.53428544]
[1734044103664,8.67428544,228.33,228.24,6.53428544]
[1734044103971,2.1896,228.28,228.24,6.53428544]
[1734044104771,6.53428544,228.29,228.19,2.1903]
[1734044105073,6.53428544,228.29,228.21,6.53428544]
[1734044105273,2.14,228.28,228.21,6.53428544]
[1734044105468,2.19,228.23,228.21,6.53428544]
[1734044105766,6.53428544,228.22,228.05,2.14]
[1734044105970,2.14,228.23,228.12,5.18194847]
[1734044105971,6.53428544,228.2,228.12,5.18194847]
[1734044106174,2.1904,228.18,228.13,6.53428544]
[1734044106366,6.53428544,228.2,228.12,5.18194847]
[1734044106671,6.53428544,228.2,228.11,6.53428544]
[1734044107068,6.53428544,228.18,228.09,6.53428544]
[1734044107266,2.14,228.17,228.09,6.53428544]
[1734044108070,2.1908,228.14,228.09,6.53428544]
[1734044108570,2.1912,228.11,228.08,6.53428544]
[1734044108771,6.53428544,228.14,228.06,6.53428544]
[1734044109570,2.1912,228.1,228.06,6.53428544]
[1734044110770,2.1912,228.1,228.06,11.6671935]
[1734044113372,2.1912,228.1,228.03,4.3318]
[1734044113373,6.53428544,228.12,228.05,6.53428544]
[1734044113678,8.67428544,228.12,228.05,6.53428544]
[1734044114076,2.1915,228.08,228.05,6.53428544]
[1734044115972,2.1915,228.07,228.05,6.53428544]
[1734044117874,8.67428544,228.12,227.97,2.7965]
[1734044117875,6.53428544,228.08,227.97,2.7965]
[1734044118080,1.3999,228.11,228.01,6.53428544]
[1734044118280,6.53428544,228.08,228.01,6.53428544]
[1734044118681,2.1919,228.03,228.01,6.53428544]
[1734044119083,2.192,228.02,227.99,5.20566716]
[1734044119282,6.53428544,228.06,227.99,11.7399526]
[1734044119687,2.1922,228.01,227.99,5.20566716]
[1734044119885,2.1922,228.01,227.97,6.53428544]
[1734044120280,2.1922,228.0,227.97,6.53428544]
[1734044122583,6.53428544,228.04,227.97,6.53428544]
[1734044122789,2.1922,228.0,227.97,6.53428544]
[1734044123885,2.14,228.02,227.97,6.53428544]
[1734044124088,8.67428544,228.02,227.95,6.53428544]
[1734044124987,2.1925,227.97,227.95,6.53428544]
[1734044125184,6.53428544,228.0,227.92,2.1929]
[1734044125390,2.1924,227.98,227.93,6.53428544]
[1734044125593,6.53428544,228.0,227.93,6.53428544]
[1734044126596,2.1925,227.97,227.93,6.53428544]
[1734044126994,2.1925,227.97,227.94,5.36226655]
[1734044130792,6.53428544,228.0,227.9,3.568]
[1734044130995,6.53428544,228.0,227.92,6.53428544]
[1734044131600,2.1927,227.95,227.92,6.53428544]
[1734044132297,2.1928,227.94,227.92,6.53428544]
[1734044134597,18.37861962,228.1,227.88,2.1932]
[1734044134598,2.1929,227.93,227.88,2.1932]
[1734044134806,8.67428544,227.96,227.88,8.72748544]
[1734044135805,2.193,227.92,227.88,8.72748544]
[1734044136005,6.53428544,227.94,227.85,5.32137289]
[1734044136192,2.1933,227.89,227.85,11.85565833]
[1734044136598,2.1933,227.88,227.84,2.1937]
[1734044136899,2.1933,227.88,227.85,6.53428544]
[1734044137298,2.1933,227.88,227.84,2.1937]
[1734044137494,2.1933,227.88,227.84,8.72798544]
[1734044137902,2.14,227.91,227.81,35.20423845]
[1734044138103,2.14,227.91,227.83,6.53428544]
[1734044138304,6.53428544,227.9,227.81,7.41540813]
[1734044138503,6.53428544,227.9,227.83,6.53428544]
[1734044139401,6.53428544,227.9,227.81,6.53428544]
[1734044139604,6.53428544,227.9,227.79,5.17051734]
[1734044139805,2.1936,227.85,227.81,6.53428544]
[1734044140006,2.14,227.91,227.83,6.53428544]
[1734044140201,4.1802,228.01,227.83,6.53428544]
[1734044140400,6.53428544,227.92,227.85,6.53428544]
[1734044140607,4.3331,227.91,227.85,8.72788544]
[1734044141108,2.14,227.91,227.85,6.53428544]
[1734044141700,2.1932,227.9,227.85,6.53428544]
[1734044143208,2.1932,227.9,227.85,8.72788544]
[1734044143604,2.1934,227.88,227.79,5.17051734]
[1734044143907,2.1934,227.88,227.82,6.53428544]
[1734044144111,2.1934,227.88,227.82,8.72808544]
[1734044144408,2.1934,227.88,227.82,6.53428544]
[1734044145605,2.1934,227.88,227.83,2.1938]
[1734044145808,8.72748544,227.9,227.84,6.53428544]
[1734044146008,6.53428544,227.9,227.79,5.17051734]
[1734044146204,2.14,227.91,227.83,6.53428544]
[1734044146501,2.14,227.91,227.85,2.1936]
[1734044146502,8.67428544,227.91,227.85,2.1936]
[1734044147410,6.53428544,227.91,227.85,2.1936]
[1734044147705,2.14,227.9,227.86,2.1935]
[1734044148515,2.14,227.9,227.85,2.1936]
[1734044148709,2.14,227.9,227.84,6.53428544]
[1734044149613,6.53428544,227.91,227.86,2.1935]
[1734044149808,151.6379188,228.08,227.84,6.53428544]
[1734044150015,6.53428544,227.92,227.84,6.53428544]
[1734044150205,8.67428544,227.92,227.84,6.53428544]
[1734044151609,8.67428544,227.92,227.88,2.1933]
[1734044155214,2.14,227.94,227.89,2.1932]
[1734044155414,6.53428544,227.92,227.89,2.1932]
[1734044160910,2.14,227.95,227.92,2.1929]
[1734044161118,6.53428544,227.94,227.92,2.1929]
[1734044161413,4.3325,227.97,227.92,2.1929]
[1734044161719,6.53428544,227.95,227.92,2.1929]
[1734044172023,8.67428544,227.97,227.94,2.1927]
[1734044172527,4.0415,228.03,227.99,2.1922]
[1734044172528,2.14,228.01,227.99,2.1922]
[1734044172723,6.53428544,228.0,227.99,2.1922]
[1734044173824,4.0415,228.03,227.93,6.53428544]
[1734044174026,8.67428544,228.02,228.0,2.1922]
[1734044174320,8.67428544,228.02,227.93,6.53428544]
[1734044174726,8.67428544,228.02,227.99,2.1923]
[1734044175923,8.67428544,228.02,227.98,2.1923]
[1734044176625,6.53428544,228.02,227.98,2.1923]
[1734044179225,6.53428544,228.02,227.93,6.53428544]
[1734044179529,2.1922,228.01,227.96,2.1925]
[1734044180428,2.1922,228.01,227.93,6.53428544]
[1734044181529,2.1922,228.01,227.94,5.1923764]
[1734044181730,2.1922,228.01,227.97,2.1924]
[1734044183933,8.72628544,228.02,227.98,2.1924]
[1734044186739,2.6741,228.09,227.95,6.53428544]
[1734044186942,2.1918,228.04,228.0,2.1922]
[1734044187134,6.53428544,228.05,227.97,6.53428544]
[1734044187335,8.67428544,228.05,227.97,6.53428544]
[1734044188638,10.86598544,228.05,228.01,2.192]
[1734044189244,10.86598544,228.05,227.97,6.53428544]
[1734044189245,8.67428544,228.05,227.97,6.53428544]
[1734044189544,8.67428544,228.07,227.99,6.53428544]
[1734044190742,45.62,228.18,228.01,6.53428544]
[1734044191042,6.53428544,228.12,227.95,2.14]
[1734044191344,6.53428544,228.08,227.96,2.14]
[1734044191639,2.1917,228.05,227.95,2.14]
[1734044191845,4.3317,228.05,227.96,6.53428544]
[1734044192441,2.1918,228.04,227.96,6.53428544]
[1734044192944,8.72608544,228.04,227.96,6.53428544]
[1734044193142,8.72608544,228.04,227.99,2.1922]
[1734044193343,2.1919,228.03,227.99,2.1922]
[1734044201346,6.53428544,228.04,227.96,6.53428544]
[1734044201556,2.14,228.05,228.0,2.1922]
[1734044202653,2.1918,228.04,228.0,2.1922]
[1734044204351,2.1918,228.04,227.98,2.1923]
[1734044204556,2.1919,228.03,227.98,2.1923]
[1734044205654,2.1919,228.03,227.99,2.1922]
[1734044218065,2.1919,228.03,228.0,2.1922]
[1734044218365,6.53428544,228.08,227.98,6.53428544]
[1734044218570,2.14,228.07,227.98,6.53428544]
[1734044218871,2.14,228.09,228.0,6.53428544]
[1734044220568,2.14,228.12,228.04,6.53428544]
[1734044220768,8.67428544,228.12,228.04,6.53428544]
[1734044221168,8.67428544,228.12,228.07,2.1914]
[1734044221368,2.191,228.13,228.04,6.53428544]
[1734044221673,4.331,228.13,228.07,2.1914]
[1734044222369,2.191,228.13,228.07,2.1914]
[1734044223774,2.191,228.13,228.08,2.1914]
[1734044226473,2.1907,228.15,228.1,2.1912]
[1734044226675,4.3307,228.15,228.07,6.53428544]
[1734044227275,2.1908,228.14,228.07,6.53428544]
[1734044227476,2.14,228.15,228.07,6.53428544]
[1734044228576,4.3307,228.15,228.1,2.1911]
[1734044230070,2.1907,228.15,228.1,2.1911]
[1734044234184,6.53428544,228.12,228.03,4.2196]
[1734044234373,8.67428544,228.12,228.03,6.3596]
[1734044234577,6.53428544,228.1,227.95,5.26658328]
[1734044234776,6.53428544,228.08,228.01,6.53428544]
[1734044235276,6.53428544,228.06,227.99,6.53428544]
[1734044236684,2.1918,228.04,227.99,6.53428544]
[1734044236878,150.04164405,228.23,228.03,30.53428544]
[1734044237080,4.378,228.34,228.0,45.6]
[1734044237081,150.04164405,228.34,228.22,6.53428544]
[1734044237278,150.04164405,228.44,228.23,2.8]
[1734044237477,11.74724922,228.43,228.37,6.53428544]
[1734044237676,11.07040066,228.43,228.37,6.53428544]
[1734044237884,11.07040066,228.43,228.4,6.53428544]
[1734044238181,1.4505,228.49,228.4,6.53428544]
[1734044238377,1.3502,228.53,228.46,6.53428544]
[1734044238578,1.3502,228.53,228.45,2.1878]
[1734044239181,1.3502,228.53,228.46,2.1877]
[1734044239387,1.3502,228.53,228.31,5.32927043]
[1734044239682,1.3502,228.53,228.42,2.1881]
[1734044239875,10.11188561,228.52,228.43,5.2806642]
[1734044240279,10.11188561,228.52,228.34,10.11188561]
[1734044240280,1.3445,228.51,228.36,2.1887]
[1734044240479,1.3445,228.51,228.34,10.11188561]
[1734044240677,1.3807,228.5,228.34,10.11188561]
[1734044240880,2.1877,228.47,228.35,2.1888]
[1734044242284,1.3445,228.51,228.39,10.11188561]
[1734044243088,1.3445,228.51,228.42,2.1881]
[1734044243289,1.3445,228.51,228.39,10.11188561]
[1734044244090,1.3445,228.51,228.43,5.13463569]
[1734044244091,2.1874,228.5,228.43,5.13463569]
[1734044244290,2.1874,228.5,228.4,2.1883]
[1734044244482,1.3445,228.51,228.39,10.11188561]
[1734044244787,2.1875,228.49,228.39,10.11188561]
[1734044245487,13.15,228.84,228.42,10.11188561]
[1734044245791,10.11188561,228.57,228.42,12.29998561]
[1734044246590,10.11188561,228.57,228.42,10.11188561]
[1734044246987,10.11188561,228.57,228.32,4.48]
[1734044246988,10.11188561,228.54,228.39,10.11188561]
[1734044247888,2.1874,228.5,228.39,10.11188561]
[1734044248089,10.11188561,228.54,228.39,10.11188561]
[1734044248590,10.11188561,228.51,228.34,5.17345005]
[1734044248787,10.11188561,228.51,228.35,10.11188561]
[1734044250491,10.11188561,228.48,228.31,5.32927043]
[1734044250685,2.6775,228.47,228.33,10.11188561]
[1734044250885,2.1883,228.41,228.33,10.11188561]
[1734044251890,2.1881,228.43,228.34,2.1889]
[1734044252391,2.1881,228.43,228.33,10.11188561]
[1734044252790,2.1883,228.41,228.33,16.78078561]
[1734044254387,2.1884,228.4,228.33,14.59188561]
[1734044254593,4.0589,228.47,228.33,14.59188561]
[1734044255093,4.0589,228.47,228.33,10.11188561]
[1734044255094,2.1884,228.4,228.33,10.11188561]
[1734044255893,2.1884,228.39,228.33,10.11188561]
[1734044257288,4.0589,228.47,228.33,12.30088561]
[1734044257289,2.1883,228.41,228.33,12.30088561]
[1734044257798,2.1884,228.4,228.33,12.30088561]
[1734044259294,2.1884,228.4,228.34,6.47882144]
[1734044261004,6.47882144,228.44,228.34,6.47882144]
[1734044261303,2.1884,228.39,228.34,6.47882144]
[1734044261800,2.1871,228.54,228.42,2.1881]
[1734044262001,7.91562144,228.52,228.44,6.47882144]
[1734044263199,1.4368,228.52,228.43,2.188]
[1734044263599,2.1875,228.49,228.43,2.188]
[1734044264000,1.4368,228.52,228.43,2.188]
[1734044264303,2.1875,228.49,228.43,2.188]
[1734044266601,1.4368,228.52,228.43,2.188]
[1734044266602,2.1876,228.48,228.43,2.188]
[1734044267105,2.1874,228.5,228.45,2.1878]
[1734044267401,1.4368,228.52,228.42,10.11475208]
[1734044267900,2.1873,228.51,228.46,2.1877]
[1734044268206,1.4368,228.52,228.42,10.11475208]
[1734044268407,1.4368,228.52,228.43,5.19132117]
[1734044268599,1.4368,228.52,228.44,5.19132117]
[1734044268797,1.4368,228.52,228.42,10.11475208]
[1734044268998,1.4368,228.52,228.43,5.19436522]
[1734044269202,2.1873,228.51,228.45,2.1878]
[1734044269600,1.4368,228.52,228.42,10.11475208]
[1734044269808,1.4368,228.52,228.43,10.58147604]
[1734044270005,1.4368,228.52,228.43,5.38133681]
[1734044270206,1.4368,228.52,228.46,2.1877]
[1734044271504,2.1873,228.51,228.46,2.1877]
[1734044272006,1.4368,228.52,228.43,5.38133681]
[1734044272207,2.1874,228.5,228.44,2.1879]
[1734044272609,2.1874,228.5,228.43,5.38133681]
[1734044272909,2.1874,228.5,228.44,5.2033076]
[1734044273109,2.1874,228.5,228.43,5.38133681]
[1734044273311,2.1874,228.5,228.44,5.20352535]
[1734044273506,2.1874,228.5,228.43,5.38133681]
[1734044273707,2.1874,228.5,228.45,2.1878]
[1734044274415,2.1874,228.5,228.46,2.1877]
[1734044276513,1.4368,228.52,228.46,2.1877]
[1734044276815,2.1873,228.51,228.46,2.1877]
[1734044277313,2.1873,228.51,228.47,7.399845]
[1734044277515,2.1873,228.51,228.47,2.1876]
[1734044279309,2.1873,228.51,228.48,5.22230749]
[1734044279607,2.1873,228.51,228.47,2.1876]
[1734044279805,10.11475208,228.58,228.48,5.22103867]
[1734044280005,2.1871,228.53,228.49,7.40853867]
[1734044280212,11.43645208,228.58,228.5,5.22103867]
[1734044280411,11.43645208,228.58,228.51,5.22103867]
[1734044280617,11.43645208,228.58,228.45,3.82]
[1734044280812,11.43645208,228.58,228.49,2.1875]
[1734044281017,10.11475208,228.55,228.5,5.22792112]
[1734044281317,1.3217,228.58,228.51,5.2487141]
[1734044281507,1.3217,228.58,228.45,3.82]
[1734044281508,10.11475208,228.56,228.52,5.2487141]
[1734044281713,10.11475208,228.56,228.53,5.2487141]
[1734044281915,10.11475208,228.56,228.47,2.1876]
[1734044282111,2.1873,228.51,228.48,5.25034476]
[1734044282416,2.1873,228.51,228.49,5.25034476]
[1734044282617,2.1873,228.51,228.45,3.82]
[1734044282618,2.1873,228.51,228.5,5.25034476]
[1734044283013,8.42997156,228.55,228.29,15.32219036]
[1734044283217,6.47455601,228.52,228.43,6.47455601]
[1734044283521,2.1877,228.47,228.43,6.47455601]
[1734044284112,2.1877,228.47,228.33,1.3359]
[1734044284113,2.1879,228.45,228.33,1.3359]
[1734044284313,6.47455601,228.48,228.4,6.47455601]
[1734044284815,2.1879,228.45,228.4,6.47455601]
[1734044285113,1.3675,228.47,228.4,6.47455601]
[1734044285513,6.47455601,228.46,228.4,6.47455601]
[1734044285921,2.1881,228.43,228.4,6.47455601]
[1734044287717,1.3675,228.47,228.33,5.1559]
[1734044287718,2.1883,228.4,228.33,5.1559]
[1734044287920,2.1883,228.4,228.37,6.47455601]
[1734044288119,2.1883,228.4,228.33,1.3359]
[1734044288320,2.1886,228.37,228.21,21.32951829]
[1734044288519,2.1886,228.37,228.35,6.47455601]
[1734044288922,2.1888,228.36,228.34,6.47455601]
[1734044289519,2.1888,228.35,228.32,6.47455601]
[1734044289721,6.47455601,228.36,228.22,1.4467]
[1734044289921,6.47455601,228.36,228.28,6.47455601]
[1734044292016,6.47455601,228.34,228.28,6.47455601]
[1734044292217,2.1893,228.3,228.28,6.47455601]
[1734044292419,6.47455601,228.34,228.26,6.47455601]
[1734044292816,6.47455601,228.34,228.22,2.19]
[1734044292817,2.1896,228.28,228.22,2.19]
[1734044293022,6.47455601,228.32,228.25,6.47455601]
[1734044293420,6.47455601,228.28,228.11,1.4602]
[1734044293626,10.07455601,228.28,228.2,6.47455601]
[1734044293824,1.4285,228.27,228.2,6.47455601]
[1734044294025,6.47455601,228.26,228.2,6.47455601]
[1734044294635,6.47455601,228.24,228.11,1.4602]
[1734044294828,6.47455601,228.24,228.16,6.47455601]
[1734044295223,6.47455601,228.22,228.16,6.47455601]
[1734044295425,6.47455601,228.22,228.14,6.47455601]
[1734044295731,2.1905,228.18,228.14,6.47455601]
[1734044296627,2.1906,228.17,228.14,6.47455601]
[1734044296822,2.1906,228.17,228.1,5.7911]
[1734044297023,6.47455601,228.22,228.14,6.47455601]
[1734044297233,2.1907,228.16,228.1,12.33421149]
[1734044298129,3.6,228.21,228.1,10.14311149]
[1734044298336,2.1907,228.15,228.1,10.14311149]
[1734044298725,2.1907,228.15,228.07,10.14311149]
[1734044299732,2.1907,228.15,228.09,2.1913]
[1734044302438,13.74311149,228.21,228.04,10.14311149]
[1734044302643,10.14311149,228.18,228.04,10.14311149]
[1734044302833,1.4181,228.17,228.09,5.14416993]
[1734044303832,2.191,228.13,228.07,2.1915]
[1734044304333,2.191,228.13,228.08,2.1914]
[1734044308542,2.191,228.13,228.08,7.41148461]
[1734044311444,1.4181,228.17,228.08,5.22008461]
[1734044311445,2.1908,228.15,228.08,5.22008461]
[1734044312643,2.1908,228.15,228.1,2.1912]
[1734044317743,1.4181,228.17,228.04,10.14311149]
[1734044318547,2.1911,228.12,228.07,2.1914]
[1734044319254,8.68672671,228.12,228.07,2.1914]
[1734044321649,6.49562671,228.12,228.07,2.1914]
[1734044321850,2.1911,228.11,228.07,2.1914]
[1734044324745,1.4181,228.17,227.98,42.63673949]
[1734044324746,6.49562671,228.1,227.98,42.63673949]
[1734044324951,6.49562671,228.1,228.02,6.49562671]
[1734044325249,3.2,228.13,228.02,5.14882983]
[1734044325250,6.49562671,228.08,228.02,5.14882983]
[1734044325547,6.49562671,228.06,227.99,6.49562671]
[1734044325752,6.49562671,228.04,227.98,42.63673949]
[1734044325949,8.68772671,228.02,227.98,42.63673949]
[1734044326149,6.49562671,228.02,227.96,11.71074371]
[1734044326451,6.49562671,228.02,227.96,5.215117]
[1734044326652,6.49562671,228.0,227.95,6.49562671]
[1734044327547,2.1923,227.99,227.94,2.1927]
[1734044327750,6.49562671,228.0,227.92,6.49562671]
[1734044328150,4.1243,228.05,227.85,4.6263]
[1734044328151,6.49562671,227.96,227.85,4.6263]
[1734044328350,6.49562671,227.96,227.89,6.49562671]
[1734044329657,6.49562671,227.94,227.85,1.4263]
[1734044329957,6.49562671,227.92,227.73,6.00732793]
[1734044330149,6.49562671,227.92,227.85,6.49562671]
[1734044330354,6.49562671,227.88,227.83,5.32125415]
[1734044330758,6.49562671,227.88,227.83,7.51505415]
[1734044332759,6.49562671,227.88,227.81,6.49562671]
[1734044332760,6.49562671,227.84,227.81,2.1939]
[1734044333167,6.49562671,227.84,227.79,5.16434403]
[1734044333353,6.49562671,227.84,227.79,7.35844403]
[1734044334064,6.49562671,227.82,227.78,2.1943]
[1734044335061,2.1934,227.88,227.81,2.194]
[1734044335265,5.19986889,227.95,227.78,13.37283981]
[1734044335557,10.17283981,227.93,227.79,3.2]
[1734044335763,12.36573981,227.93,227.86,2.1935]
[1734044337260,2.193,227.91,227.83,2.1937]
[1734044338565,2.193,227.91,227.79,3.2]
[1734044339560,2.193,227.91,227.85,2.1936]
[1734044339865,12.36573981,227.93,227.79,3.2]
[1734044341070,15.56543981,227.96,227.9,2.1931]
[1734044341268,10.17283981,227.96,227.81,10.17283981]
[1734044341456,1.3771,227.98,227.84,10.17283981]
[1734044341658,12.97073981,227.99,227.85,3.0]
[1734044342157,12.97073981,227.99,227.89,2.1932]
[1734044342363,12.97073981,227.99,227.85,3.0]
[1734044342962,1.3463,227.99,227.88,10.17283981]
[1734044343263,1.353,228.05,227.88,10.17283981]
[1734044343461,11.52583981,228.05,227.91,10.17283981]
[1734044343763,10.17283981,228.05,227.92,3.0]
[1734044343966,10.17283981,228.05,227.95,2.1926]
[1734044344170,10.17283981,228.05,227.92,4.4573]
[1734044345569,10.17283981,228.05,228.0,2.1921]
[1734044345870,10.17283981,228.05,227.92,4.4573]
[1734044346267,4.3816,228.06,228.02,2.1919]
[1734044346860,10.17283981,228.08,227.94,10.17283981]